fUST/lending_fUST_20250904
["ID","MTS","AMOUNT","RATE_DAILY","PERIOD"]
[383549390,1756986654492,-1532.77,0.00014246,2]
[383549392,1756986654502,-480.0,0.00014246,2]
[383549393,1756986654511,-480.0,0.00014246,2]
[383549395,1756986654520,-526.71,0.00014246,2]
[383549396,1756986654530,-1015.83,0.00014246,2]
[383549398,1756986654539,-480.0,0.00014246,2]
[383549400,1756986654548,-480.0,0.00014246,2]
[383549401,1756986654558,-480.0,0.00014246,2]
[383549403,1756986654567,-480.0,0.00014246,2]
[383549404,1756986654576,-480.0,0.00014246,2]
[383549406,1756986654586,-575.53,0.00014246,2]
[383549408,1756986654595,-480.0,0.00014246,2]
[383549410,1756986654604,-480.0,0.00014246,2]
[383549411,1756986654614,-529.51,0.00014246,2]
[383549413,1756986654623,-480.0,0.00014246,2]
[383549415,1756986654633,-484.65824823,0.00014246,2]
[383549416,1756986654642,-309.94751091,0.00014246,2]
[383549418,1756986654651,-527.72762736,0.00014246,2]
[383549419,1756986654660,-480.0,0.00014246,2]
[383549421,1756986654670,-540.99,0.00014246,2]
[383549423,1756986654679,-480.0,0.00014246,2]
[383549425,1756986654688,-500.0,0.00014246,2]
[383549426,1756986654697,-292.0,0.00014254,2]
[383549428,1756986654707,-500.0,0.00014273,2]
[383549430,1756986654717,-500.0,0.00014273,2]
[383549431,1756986654726,-213.7467389,0.00014273,2]
[383549433,1756986654735,-500.0,0.00014273,2]
[383549435,1756986654745,-168.0,0.00014274,2]
[383549437,1756986654754,-6000.0,0.00014279,2]
[383549438,1756986654765,-801.93941976,0.0001428,2]
[383549440,1756986654775,-151.0,0.000143,2]
[383549442,1756986654784,-176.0,0.00014347,2]
[383549443,1756986654793,-292.0,0.00014366,2]
[383549445,1756986654803,-1000.0,0.0001438,2]
[383549447,1756986654812,-4000.0,0.00014388,2]
[383549449,1756986654823,-151.0,0.000144,2]
[383549450,1756986654832,-306.0,0.00014425,2]
[383549452,1756986654843,-295.1921985,0.00014425,2]
[383549454,1756986654852,-308.6521045,0.00014425,2]
[383549455,1756986654861,-295.1921985,0.00014425,2]
[383549457,1756986654870,-295.1921985,0.00014425,2]
[383549459,1756986654879,-583.3372198,0.00014425,2]
[383549461,1756986654889,-295.1921985,0.00014425,2]
[383549462,1756986654899,-583.3372198,0.00014425,2]
[383549464,1756986654908,-582.395692,0.00014425,2]
[383549466,1756986654918,-295.1921985,0.00014425,2]
[383549467,1756986654927,-562.8113403,0.00014425,2]
[383549469,1756986654937,-161.5001058,0.00014425,2]
[383549471,1756986654946,-161.5001058,0.00014425,2]
[383549473,1756986654955,-161.5001058,0.00014425,2]
[383549474,1756986654965,-292.0,0.00014479,2]
[383549476,1756986654974,-4000.0,0.00014494,2]
[383549478,1756986654984,-151.0,0.000145,2]
[383549479,1756986654995,-187.61848634,0.0001451,2]
[383549481,1756986655006,-227.45247062,0.0001452,2]
[383549483,1756986655015,-151.0,0.0001452,2]
[383549484,1756986655025,-255.0,0.0001452,2]
[383549486,1756986655035,-255.0,0.0001452,2]
[383549487,1756986655044,-151.0,0.0001452,2]
[383549489,1756986655053,-151.0,0.0001452,2]
[383549491,1756986655062,-151.0,0.0001452,2]
[383549493,1756986655071,-530.0,0.0001452,2]
[383549494,1756986655081,-151.0,0.0001452,2]
[383549496,1756986655090,-247.22808692,0.0001452,2]
[383549498,1756986655099,-151.0,0.0001452,2]
[383549499,1756986655108,-480.0,0.0001452,2]
[383549501,1756986655118,-203.88298268,0.0001452,2]
[383549503,1756986655127,-151.0,0.0001452,2]
[383549505,1756986655136,-151.0,0.0001452,2]
[383549506,1756986655146,-480.0,0.0001452,2]
[383549508,1756986655156,-480.0,0.0001452,2]
[383549510,1756986655165,-480.0,0.0001452,2]
[383549511,1756986655174,-1273.42,0.0001452,2]
[383549513,1756986655183,-480.0,0.0001452,2]
[383549515,1756986655192,-486.26,0.0001452,2]
[383549516,1756986655201,-480.0,0.0001452,2]
[383549518,1756986655210,-188.62885906,0.0001452,2]
[383549520,1756986655220,-480.0,0.0001452,2]
[383549522,1756986655229,-480.0,0.0001452,2]
[383549523,1756986655238,-480.0,0.0001452,2]
[383549525,1756986655248,-637.46,0.0001452,2]
[383549527,1756986655258,-480.0,0.0001452,2]
[383549528,1756986655267,-480.0,0.0001452,2]
[383549530,1756986655277,-480.0,0.0001452,2]
[383549532,1756986655286,-340.15822084,0.0001452,2]
[383549533,1756986655295,-480.0,0.0001452,2]
[383549535,1756986655308,-480.0,0.0001452,2]
[383549537,1756986655328,-480.0,0.0001452,2]
[383549539,1756986655338,-480.0,0.0001452,2]
[383549540,1756986655348,-554.49,0.0001452,2]
[383549542,1756986655358,-675.02,0.0001452,2]
[383549544,1756986655367,-820.51,0.0001452,2]
[383549546,1756986655376,-480.0,0.0001452,2]
[383549547,1756986655386,-480.0,0.0001452,2]
[383549549,1756986655395,-480.0,0.0001452,2]
[383549551,1756986655405,-154.00478162,0.0001452,2]
[383549552,1756986655414,-480.0,0.0001452,2]
[383549554,1756986655424,-480.0,0.0001452,2]
[383549556,1756986655434,-243.8903917,0.0001452,2]
[383549558,1756986655444,-480.0,0.0001452,2]
[383549559,1756986655453,-480.0,0.0001452,2]
[383549561,1756986655463,-480.0,0.0001452,2]
[383549563,1756986655472,-480.0,0.0001452,2]
[383549564,1756986655482,-480.0,0.0001452,2]
[383549566,1756986655491,-480.0,0.0001452,2]
[383549568,1756986655502,-480.0,0.0001452,2]
[383549570,1756986655511,-480.0,0.0001452,2]
[383549571,1756986655521,-540.53979437,0.0001452,2]
[383549573,1756986655530,-480.0,0.0001452,2]
[383549575,1756986655539,-436.08216392,0.0001452,2]
[383549576,1756986655549,-480.0,0.0001452,2]
[383549578,1756986655558,-2489.76,0.0001452,2]
[383549580,1756986655567,-480.0,0.0001452,2]
[383549582,1756986655577,-480.0,0.0001452,2]
[383549583,1756986655587,-480.0,0.0001452,2]
[383549585,1756986655596,-480.0,0.0001452,2]
[383549587,1756986655605,-480.0,0.0001452,2]
[383549588,1756986655614,-480.0,0.0001452,2]
[383549590,1756986655624,-480.0,0.0001452,2]
[383549592,1756986655634,-480.0,0.0001452,2]
[383549594,1756986655643,-480.0,0.0001452,2]
[383549595,1756986655653,-480.0,0.0001452,2]
[383549597,1756986655662,-480.0,0.0001452,2]
[383549599,1756986655672,-480.0,0.0001452,2]
[383549600,1756986655682,-480.0,0.0001452,2]
[383549602,1756986655691,-480.0,0.0001452,2]
[383549604,1756986655701,-480.0,0.0001452,2]
[383549606,1756986655710,-480.0,0.0001452,2]
[383549607,1756986655719,-480.0,0.0001452,2]
[383549609,1756986655729,-480.0,0.0001452,2]
[383549611,1756986655739,-480.0,0.0001452,2]
[383549612,1756986655748,-741.01,0.0001452,2]
[383549614,1756986655757,-480.0,0.0001452,2]
[383549616,1756986655767,-480.0,0.0001452,2]
[383549618,1756986655777,-480.0,0.0001452,2]
[383549619,1756986655787,-602.65,0.0001452,2]
[383549621,1756986655796,-722.05,0.0001452,2]
[383549623,1756986655805,-480.0,0.0001452,2]
[383549624,1756986655814,-480.0,0.0001452,2]
[383549626,1756986655823,-480.0,0.0001452,2]
[383549628,1756986655833,-480.0,0.0001452,2]
[383549629,1756986655842,-480.0,0.0001452,2]
[383549631,1756986655853,-480.0,0.0001452,2]
[383549633,1756986655862,-480.0,0.0001452,2]
[383549634,1756986655872,-480.0,0.0001452,2]
[383549636,1756986655881,-2086.58,0.0001452,2]
[383549638,1756986655891,-480.0,0.0001452,2]
[383549639,1756986655900,-579.75964523,0.0001452,2]
[383549641,1756986655909,-480.0,0.0001452,2]
[383549643,1756986655919,-497.18,0.0001452,2]
[383549645,1756986655931,-1638.94,0.0001452,2]
[383549646,1756986655940,-480.0,0.0001452,2]
[383549648,1756986655949,-662.65,0.0001452,2]
[383549650,1756986655959,-1985.99,0.0001452,2]
[383549658,1756986656049,-160.75282744,0.0001452,2]
[383549660,1756986656060,-480.0,0.0001452,2]
[383549662,1756986656069,-480.0,0.0001452,2]
[383549664,1756986656078,-480.0,0.0001452,2]
[383549666,1756986656087,-267.05226321,0.0001452,2]
[383549668,1756986656096,-480.0,0.0001452,2]
[383549670,1756986656106,-480.0,0.0001452,2]
[383549672,1756986656116,-521.73339744,0.0001452,2]
[383549674,1756986656125,-480.0,0.0001452,2]
[383549676,1756986656135,-480.0,0.0001452,2]
[383549678,1756986656145,-480.0,0.0001452,2]
[383549679,1756986656154,-480.0,0.0001452,2]
[383549680,1756986656164,-590.89,0.0001452,2]
[383549681,1756986656173,-480.0,0.0001452,2]
[383549682,1756986656183,-480.0,0.0001452,2]
[383549683,1756986656192,-480.0,0.0001452,2]
[383549684,1756986656202,-480.0,0.0001452,2]
[383549685,1756986656211,-480.0,0.0001452,2]
[383549686,1756986656222,-480.0,0.0001452,2]
[383549687,1756986656231,-480.0,0.0001452,2]
[383549688,1756986656240,-480.0,0.0001452,2]
[383549689,1756986656249,-480.0,0.0001452,2]
[383549690,1756986656259,-480.0,0.0001452,2]
[383549691,1756986656269,-2659.8,0.0001452,2]
[383549692,1756986656278,-1059.07,0.0001452,2]
[383549693,1756986656288,-480.0,0.0001452,2]
[383549694,1756986656297,-480.0,0.0001452,2]
[383549695,1756986656307,-480.0,0.0001452,2]
[383549696,1756986656319,-480.0,0.0001452,2]
[383549697,1756986656328,-480.0,0.0001452,2]
[383549698,1756986656337,-647.31,0.0001452,2]
[383549699,1756986656346,-1126.5,0.0001452,2]
[383549700,1756986656355,-4406.53,0.0001452,2]
[383549701,1756986656365,-550.21,0.0001452,2]
[383549702,1756986656374,-216.17280715,0.0001452,2]
[383549703,1756986656383,-1348.52,0.0001452,2]
[383549704,1756986656392,-480.0,0.0001452,2]
[383549705,1756986656402,-480.0,0.0001452,2]
[383549706,1756986656411,-659.33,0.0001452,2]
[383549707,1756986656421,-480.0,0.0001452,2]
[383549708,1756986656430,-520.21,0.0001452,2]
[383549709,1756986656440,-480.0,0.0001452,2]
[383549710,1756986656450,-1813.81,0.0001452,2]
[383549711,1756986656459,-585.00476031,0.0001452,2]
[383549712,1756986656470,-480.0,0.0001452,2]
[383549713,1756986656479,-480.0,0.0001452,2]
[383549715,1756986656489,-480.0,0.0001452,2]
[383549716,1756986656498,-675.44,0.0001452,2]
[383549717,1756986656508,-480.0,0.0001452,2]
[383549719,1756986656518,-480.0,0.0001452,2]
[383549721,1756986656527,-480.0,0.0001452,2]
[383549723,1756986656539,-480.0,0.0001452,2]
[383549725,1756986656549,-480.0,0.0001452,2]
[383549727,1756986656558,-480.0,0.0001452,2]
[383549729,1756986656568,-480.0,0.0001452,2]
[383549731,1756986656578,-480.0,0.0001452,2]
[383549733,1756986656589,-480.0,0.0001452,2]
[383549735,1756986656599,-480.0,0.0001452,2]
[383549737,1756986656608,-480.0,0.0001452,2]
[383549739,1756986656618,-1054.07,0.0001452,2]
[383549741,1756986656627,-480.0,0.0001452,2]
[383549743,1756986656637,-1344.27,0.0001452,2]
[383549745,1756986656647,-1528.19,0.0001452,2]
[383549747,1756986656657,-2001.23,0.0001452,2]
[383549750,1756986656667,-480.0,0.0001452,2]
[383549752,1756986656676,-1708.96,0.0001452,2]
[383549754,1756986656685,-480.0,0.0001452,2]
[383549756,1756986656701,-2305.41,0.0001452,2]
[383549759,1756986656715,-1532.77,0.0001452,2]
[383549761,1756986656727,-480.0,0.0001452,2]
[383549763,1756986656737,-480.0,0.0001452,2]
[383549765,1756986656748,-526.71,0.0001452,2]
[383549767,1756986656757,-1015.83,0.0001452,2]
[383549769,1756986656767,-480.0,0.0001452,2]
[383549771,1756986656777,-204.64267722,0.0001452,2]
[383549773,1756986656788,-500.0,0.0001452,2]
[383549775,1756986656798,-480.0,0.0001452,2]
[383549777,1756986656809,-480.0,0.0001452,2]
[383549779,1756986656819,-480.0,0.0001452,2]
[383549781,1756986656829,-575.53,0.0001452,2]
[383549783,1756986656840,-480.0,0.0001452,2]
[383549785,1756986656850,-480.0,0.0001452,2]
[383549787,1756986656860,-529.51,0.0001452,2]
[383549789,1756986656870,-480.0,0.0001452,2]
[383549791,1756986656879,-480.0,0.0001452,2]
[383549793,1756986656889,-540.99,0.0001452,2]
[383549795,1756986656899,-1000.0,0.00014521,2]
[383549797,1756986656908,-1000.0,0.00014521,2]
[383549799,1756986656918,-1000.0,0.00014521,2]
[383549801,1756986656927,-500.0,0.00014521,2]
[383549803,1756986656937,-1000.0,0.00014521,2]
[383549805,1756986656947,-1000.0,0.00014521,2]
[383549807,1756986656956,-1000.0,0.00014521,2]
[383549809,1756986656966,-1000.0,0.00014521,2]
[383549811,1756986656975,-1000.0,0.00014521,2]
[383549813,1756986656985,-1000.0,0.00014521,2]
[383549815,1756986656995,-500.0,0.0001456,2]
[383549817,1756986657006,-501.25187764,0.00014566,2]
[383549819,1756986657015,-500.61081285,0.00014566,2]
[383549821,1756986657030,-250.0,0.00014566,2]
[383549823,1756986657040,-500.0,0.00014581,2]
[383549825,1756986657050,-3515.90257877,0.00014595,2]
[383549827,1756986657059,-1000.0,0.000146,2]
[383549829,1756986657070,-176.0,0.00014605,2]
[383549831,1756986657079,-280.0,0.00014683,2]
[383549833,1756986657090,-1680.0,0.00014688,2]
[383549836,1756986657100,-420.0,0.00014688,2]
[383549838,1756986657111,-151.0,0.000147,2]
[383549840,1756986657121,-411.44800097,0.00014711,2]
[383549842,1756986657131,-638.80896229,0.00014711,2]
[383549844,1756986657140,-501.46412833,0.00014711,2]
[383549846,1756986657150,-280.0,0.00014718,2]
[383549848,1756986657159,-500.0,0.00014725,2]
[383549850,1756986657169,-1680.0,0.00014738,2]
[383549852,1756986657179,-302.66341011,0.00014741,2]
[383549854,1756986657189,-500.0,0.00014741,2]
[383549856,1756986657199,-500.0,0.00014741,2]
[383549858,1756986657209,-292.0,0.00014751,2]
[383549860,1756986657220,-290.67804224,0.00014751,5]
[383549862,1756986657230,-1500.0,0.00014768,2]
[383549864,1756986657240,-1500.0,0.00014768,2]
[383549866,1756986657250,-1500.0,0.00014768,2]
[383549868,1756986657259,-292.0,0.00014771,2]
[383549870,1756986657269,-245.0,0.00014794,2]
[383549872,1756986657279,-151.0,0.00014794,2]
[383549874,1756986657289,-292.0,0.00014794,2]
[383549876,1756986657299,-245.0,0.00014794,2]
[383549879,1756986657312,-530.0,0.00014794,2]
[383549881,1756986657322,-151.0,0.00014794,2]
[383549883,1756986657332,-500.0,0.00014794,2]
[383549885,1756986657341,-480.0,0.00014794,2]
[383549887,1756986657353,-480.0,0.00014794,2]
[383549889,1756986657362,-480.0,0.00014794,2]
[383549891,1756986657371,-1273.42,0.00014794,2]
[383549893,1756986657382,-480.0,0.00014794,2]
[383549895,1756986657392,-486.26,0.00014794,2]
[383549897,1756986657402,-480.0,0.00014794,2]
[383549899,1756986657411,-480.0,0.00014794,2]
[383549901,1756986657420,-480.0,0.00014794,2]
[383549903,1756986657430,-480.0,0.00014794,2]
[383549905,1756986657441,-637.46,0.00014794,2]
[383549907,1756986657451,-480.0,0.00014794,2]
[383549909,1756986657460,-480.0,0.00014794,2]
[383549910,1756986657470,-480.0,0.00014794,2]
[383549913,1756986657480,-480.0,0.00014794,2]
[383549914,1756986657490,-480.0,0.00014794,2]
[383549917,1756986657500,-480.0,0.00014794,2]
[383549919,1756986657509,-480.0,0.00014794,2]
[383549921,1756986657519,-554.49,0.00014794,2]
[383549923,1756986657533,-675.02,0.00014794,2]
[383549925,1756986657542,-820.51,0.00014794,2]
[383549927,1756986657552,-480.0,0.00014794,2]
[383549939,1756986657659,-480.0,0.00014794,2]
[383549941,1756986657669,-480.0,0.00014794,2]
[383549943,1756986657678,-480.0,0.00014794,2]
[383549945,1756986657688,-261.32,0.00014794,2]
[383549947,1756986657698,-480.0,0.00014794,2]
[383549949,1756986657707,-480.0,0.00014794,2]
[383549951,1756986657717,-480.0,0.00014794,2]
[383549953,1756986657727,-360.47878054,0.00014794,2]
[383549955,1756986657736,-208.04703272,0.00014794,2]
[383549957,1756986657746,-480.0,0.00014794,2]
[383549959,1756986657755,-553.2246819,0.00014794,2]
[383549961,1756986657765,-480.0,0.00014794,2]
[383549963,1756986657774,-480.0,0.00014794,2]
[383549965,1756986657783,-480.0,0.00014794,2]
[383549967,1756986657793,-2489.76,0.00014794,2]
[383549969,1756986657802,-480.0,0.00014794,2]
[383549971,1756986657811,-480.0,0.00014794,2]
[383549973,1756986657820,-480.0,0.00014794,2]
[383549975,1756986657829,-480.0,0.00014794,2]
[383549977,1756986657838,-561.79381313,0.00014794,2]
[383549979,1756986657847,-480.0,0.00014794,2]
[383549981,1756986657857,-480.0,0.00014794,2]
[383549983,1756986657866,-480.0,0.00014794,2]
[383549985,1756986657875,-480.0,0.00014794,2]
[383549987,1756986657884,-480.0,0.00014794,2]
[383549989,1756986657893,-480.0,0.00014794,2]
[383549991,1756986657902,-480.0,0.00014794,2]
[383549993,1756986657911,-480.0,0.00014794,2]
[383549994,1756986657920,-480.0,0.00014794,2]
[383549996,1756986657929,-480.0,0.00014794,2]
[383549998,1756986657938,-480.0,0.00014794,2]
[383550000,1756986657951,-480.0,0.00014794,2]
[383550002,1756986657961,-480.0,0.00014794,2]
[383550004,1756986657971,-741.01,0.00014794,2]
[383550006,1756986657981,-480.0,0.00014794,2]
[383550008,1756986657990,-570.39137897,0.00014794,2]
[383550010,1756986658000,-480.0,0.00014794,2]
[383550012,1756986658009,-722.05,0.00014794,2]
[383550014,1756986658019,-480.0,0.00014794,2]
[383550016,1756986658028,-273.21,0.00014794,2]
[383550018,1756986658037,-187.9517602,0.00014794,2]
[383550020,1756986658047,-480.0,0.00014794,2]
[383550022,1756986658056,-480.0,0.00014794,2]
[383550024,1756986658065,-480.0,0.00014794,2]
[383550026,1756986658074,-480.0,0.00014794,2]
[383550028,1756986658083,-480.0,0.00014794,2]
[383550030,1756986658093,-436.03720791,0.00014794,2]
[383550032,1756986658103,-2086.58,0.00014794,2]
[383550034,1756986658112,-480.0,0.00014794,2]
[383550036,1756986658121,-497.18,0.00014794,2]
[383550038,1756986658131,-1638.94,0.00014794,2]
[383550040,1756986658140,-191.13172938,0.00014794,2]
[383550042,1756986658150,-662.65,0.00014794,2]
[383550044,1756986658159,-1985.99,0.00014794,2]
[383550046,1756986658168,-480.0,0.00014794,2]
[383550048,1756986658177,-480.0,0.00014794,2]
[383550050,1756986658186,-562.15,0.00014794,2]
[383550052,1756986658195,-480.0,0.00014794,2]
[383550054,1756986658204,-480.0,0.00014794,2]
[383550056,1756986658213,-480.0,0.00014794,2]
[383550058,1756986658223,-480.0,0.00014794,2]
[383550060,1756986658232,-480.0,0.00014794,2]
[383550062,1756986658241,-480.0,0.00014794,2]
[383550064,1756986658250,-590.89,0.00014794,2]
[383550066,1756986658259,-480.0,0.00014794,2]
[383550068,1756986658268,-480.0,0.00014794,2]
[383550070,1756986658277,-480.0,0.00014794,2]
[383550072,1756986658287,-480.0,0.00014794,2]
[383550074,1756986658296,-480.0,0.00014794,2]
[383550076,1756986658305,-480.0,0.00014794,2]
[383550078,1756986658315,-480.0,0.00014794,2]
[383550080,1756986658326,-369.17817924,0.00014794,2]
[383550082,1756986658336,-480.0,0.00014794,2]
[383550084,1756986658345,-480.0,0.00014794,2]
[383550086,1756986658355,-2659.8,0.00014794,2]
[383550088,1756986658364,-1059.07,0.00014794,2]
[383550090,1756986658375,-480.0,0.00014794,2]
[383550092,1756986658384,-480.0,0.00014794,2]
[383550094,1756986658393,-480.0,0.00014794,2]
[383550096,1756986658403,-480.0,0.00014794,2]
[383550098,1756986658413,-480.0,0.00014794,2]
[383550100,1756986658422,-647.31,0.00014794,2]
[383550102,1756986658431,-1126.5,0.00014794,2]
[383550104,1756986658440,-4406.53,0.00014794,2]
[383550106,1756986658450,-550.21,0.00014794,2]
[383550108,1756986658459,-1348.52,0.00014794,2]
[383550110,1756986658468,-480.0,0.00014794,2]
[383550112,1756986658478,-480.0,0.00014794,2]
[383550114,1756986658487,-659.33,0.00014794,2]
[383550116,1756986658497,-480.0,0.00014794,2]
[383550118,1756986658507,-520.21,0.00014794,2]
[383550120,1756986658516,-480.0,0.00014794,2]
[383550122,1756986658526,-1813.81,0.00014794,2]
[383550124,1756986658535,-480.0,0.00014794,2]
[383550126,1756986658544,-480.0,0.00014794,2]
[383550128,1756986658555,-675.44,0.00014794,2]
[383550130,1756986658565,-480.0,0.00014794,2]
[383550132,1756986658574,-480.0,0.00014794,2]
[383550134,1756986658583,-480.0,0.00014794,2]
[383550136,1756986658592,-486.22,0.00014794,2]
[383550138,1756986658602,-480.0,0.00014794,2]
[383550140,1756986658611,-512.87,0.00014794,2]
[383550142,1756986658620,-480.0,0.00014794,2]
[383550144,1756986658629,-480.0,0.00014794,2]
[383550146,1756986658639,-480.0,0.00014794,2]
[383550148,1756986658648,-480.0,0.00014794,2]
[383550150,1756986658657,-1054.07,0.00014794,2]
[383550152,1756986658666,-480.0,0.00014794,2]
[383550154,1756986658675,-1344.27,0.00014794,2]
[383550156,1756986658685,-1528.19,0.00014794,2]
[383550158,1756986658694,-2001.23,0.00014794,2]
[383550160,1756986658704,-480.0,0.00014794,2]
[383550162,1756986658713,-1708.96,0.00014794,2]
[383550164,1756986658723,-480.0,0.00014794,2]
[383550166,1756986658733,-2305.41,0.00014794,2]
[383550168,1756986658742,-1532.77,0.00014794,2]
[383550170,1756986658752,-480.0,0.00014794,2]
[383550172,1756986658762,-480.0,0.00014794,2]
[383550174,1756986658772,-526.71,0.00014794,2]
[383550176,1756986658781,-1015.83,0.00014794,2]
[383550178,1756986658791,-480.0,0.00014794,2]
[383550180,1756986658800,-480.0,0.00014794,2]
[383550182,1756986658809,-480.0,0.00014794,2]
[383550184,1756986658819,-480.0,0.00014794,2]
[383550186,1756986658829,-575.53,0.00014794,2]
[383550188,1756986658839,-480.0,0.00014794,2]
[383550190,1756986658849,-480.0,0.00014794,2]
[383550192,1756986658858,-529.51,0.00014794,2]
[383550194,1756986658868,-537.02412781,0.00014794,2]
[383550196,1756986658877,-480.0,0.00014794,2]
[383550198,1756986658886,-540.99,0.00014794,2]
[383550200,1756986658895,-501.38118317,0.00014811,2]
[383550202,1756986658904,-501.82497982,0.00014811,2]
[383550204,1756986658913,-700.52676102,0.00014821,2]
[383550206,1756986658923,-488.11582637,0.00014821,2]
[383550208,1756986658931,-1062.86986615,0.00014821,2]
[383550210,1756986658941,-194.72792766,0.00014858,2]
[383550212,1756986658951,-388.3851953,0.00014877,2]
[383550214,1756986658960,-388.3851953,0.00014877,2]
[383550216,1756986658969,-388.3851953,0.00014877,2]
[383550226,1756986659053,-168.8179311,0.00014877,2]
[383550228,1756986659062,-292.0,0.00014893,2]
[383550230,1756986659072,-168.0,0.00014981,2]
[383550232,1756986659082,-168.0,0.00014986,2]
[383550234,1756986659092,-609.30197957,0.00014995,2]
[383550236,1756986659101,-500.0,0.00014995,2]
[383550238,1756986659112,-500.0,0.00014995,2]
[383550240,1756986659121,-160.0,0.00015,2]
[383550242,1756986659132,-530.0,0.00015068,2]
[383550244,1756986659141,-500.0,0.00015068,2]
[383550246,1756986659150,-480.0,0.00015068,2]
[383550248,1756986659160,-480.0,0.00015068,2]
[383550250,1756986659169,-480.0,0.00015068,2]
[383550252,1756986659179,-1273.42,0.00015068,2]
[383550254,1756986659188,-480.0,0.00015068,2]
[383550256,1756986659198,-486.26,0.00015068,2]
[383550258,1756986659207,-480.0,0.00015068,2]
[383550260,1756986659216,-480.0,0.00015068,2]
[383550262,1756986659227,-480.0,0.00015068,2]
[383550264,1756986659236,-480.0,0.00015068,2]
[383550266,1756986659246,-637.46,0.00015068,2]
[383550268,1756986659255,-480.0,0.00015068,2]
[383550270,1756986659265,-480.0,0.00015068,2]
[383550272,1756986659274,-400.32194627,0.00015068,2]
[383550274,1756986659284,-480.0,0.00015068,2]
[383550276,1756986659293,-480.0,0.00015068,2]
[383550278,1756986659303,-169.92658793,0.00015068,2]
[383550280,1756986659312,-480.0,0.00015068,2]
[383550282,1756986659323,-554.49,0.00015068,2]
[383550284,1756986659334,-675.02,0.00015068,2]
[383550286,1756986659344,-820.51,0.00015068,2]
[383550288,1756986659354,-480.0,0.00015068,2]
[383550290,1756986659364,-480.0,0.00015068,2]
[383550292,1756986659373,-480.0,0.00015068,2]
[383550294,1756986659383,-480.0,0.00015068,2]
[383550296,1756986659394,-480.0,0.00015068,2]
[383550298,1756986659404,-480.0,0.00015068,2]
[383550300,1756986659413,-480.0,0.00015068,2]
[383550302,1756986659423,-480.0,0.00015068,2]
[383550304,1756986659432,-206.24443585,0.00015068,2]
[383550306,1756986659441,-480.0,0.00015068,2]
[383550308,1756986659451,-2489.76,0.00015068,2]
[383550310,1756986659460,-480.0,0.00015068,2]
[383550312,1756986659470,-480.0,0.00015068,2]
[383550314,1756986659480,-480.0,0.00015068,2]
[383550316,1756986659489,-480.0,0.00015068,2]
[383550318,1756986659499,-480.0,0.00015068,2]
[383550320,1756986659508,-480.0,0.00015068,2]
[383550322,1756986659518,-480.0,0.00015068,2]
[383550324,1756986659527,-480.0,0.00015068,2]
[383550326,1756986659536,-480.0,0.00015068,2]
[383550328,1756986659546,-480.0,0.00015068,2]
[383550330,1756986659556,-480.0,0.00015068,2]
[383550332,1756986659565,-480.0,0.00015068,2]